bitfinex-derivatives/quotes_SOLF0:USTF0_20250823
["timestamp","ask_amount","ask_price","bid_price","bid_amount"]
[1755985795494,4.9211,203.27,203.19,7.5026]
[1755985795695,119.26,203.27,203.19,7.5026]
[1755985796797,119.26,203.27,203.19,2.58]
[1755985796999,119.26,203.27,203.13,2.58]
[1755985797000,6.8761354,203.26,203.13,2.58]
[1755985797201,6.8761354,203.26,203.15,2.58]
[1755985797401,11.7972354,203.26,203.15,7.5038]
[1755985797701,6.8761354,203.26,203.15,2.58]
[1755985798799,4.9216,203.25,203.15,2.58]
[1755985799000,124.2616,203.25,203.15,2.58]
[1755985799201,4.9219,203.23,203.15,7.5036]
[1755985799699,4.9219,203.23,203.08,474.5866]
[1755985799700,4.9225,203.21,203.16,1.60168236]
[1755985799900,6.8761354,203.23,203.17,1.60168236]
[1755985800198,119.66,203.22,203.18,1.60174687]
[1755985800406,119.66,203.22,203.19,1.60174687]
[1755985800596,4.9217,203.24,203.18,2.58]
[1755985800796,119.7,203.23,203.19,1.60166397]
[1755985800996,119.7,203.23,203.18,2.58]
[1755985801202,119.7,203.23,203.19,1.60166397]
[1755985801402,119.7,203.23,203.18,2.58]
[1755985801602,119.7,203.23,203.19,1.60169946]
[1755985801799,119.7,203.23,203.18,2.58]
[1755985802000,4.9217,203.24,203.19,1.60092648]
[1755985802206,4.9217,203.24,203.18,2.58]
[1755985802505,119.68,203.23,203.19,1.60035274]
[1755985802705,119.68,203.23,203.18,2.58]
[1755985803505,119.68,203.23,203.19,1.59989343]
[1755985803802,119.68,203.23,203.17,2.55]
[1755985804004,0.02,203.22,203.19,2.55]
[1755985805301,0.02,203.26,203.19,2.55]
[1755985806007,119.72,203.28,203.19,2.55]
[1755985807505,119.72,203.28,203.2,4.9223]
[1755985807705,119.72,203.28,203.21,2.55]
[1755985812206,119.72,203.28,203.21,7.4721]
[1755985812905,119.72,203.28,203.16,24.6176]
[1755985812906,119.72,203.28,203.22,2.55]
[1755985813706,0.02,203.29,203.22,2.55]
[1755985814513,0.02,203.29,203.23,4.9217]
[1755985815210,0.02,203.29,203.24,2.55]
[1755985815410,4.39893924,203.31,203.25,2.55]
[1755985816514,124.5997,203.32,203.25,2.55]
[1755985817814,4.9197,203.32,203.25,2.55]
[1755985818008,124.5797,203.32,203.25,2.55]
[1755985819612,124.5797,203.32,203.25,7.4712]
[1755985822111,119.66,203.32,203.25,7.4712]
[1755985822314,119.66,203.32,203.26,4.921]
[1755985828712,119.66,203.32,203.26,7.471]
[1755985835421,4.9192,203.34,203.28,2.63]
[1755985855839,124.4188,203.36,203.28,7.5505]
[1755985858145,119.5,203.36,203.3,2.63]
[1755985862333,4.9186,203.37,203.3,2.63]
[1755985863144,4.9186,203.37,203.3,7.55]
[1755985869050,4.9186,203.37,203.31,2.73]
[1755985877848,4.9186,203.37,203.32,4.00881048]
[1755985878146,4.9186,203.37,203.33,2.73]
[1755985879945,4.9186,203.37,203.3,4.92]
[1755985880246,4.9186,203.37,203.31,6.73855401]
[1755985880447,4.9186,203.37,203.31,2.73]
[1755985884544,4.9181,203.39,203.31,2.73]
[1755985884750,4.9181,203.39,203.33,2.73]
[1755985887748,4.9181,203.39,203.34,4.07901782]
[1755985887948,4.9181,203.39,203.35,2.73]
[1755985891248,4.9181,203.39,203.32,4.9195]
[1755985891454,4.9176,203.41,203.34,2.73]
[1755985891656,4.39706465,203.46,203.36,2.73]
[1755985891852,4.39706465,203.46,203.38,2.73]
[1755985892053,4.39706465,203.46,203.4,2.73]
[1755985892553,4.9166,203.45,203.37,4.9183]
[1755985892853,4.9166,203.45,203.38,6.80444067]
[1755985893053,4.9166,203.45,203.39,4.07444067]
[1755985893254,4.9166,203.45,203.38,2.73]
[1755985894658,340.03306465,203.48,203.4,2.65]
[1755985894858,9.31306465,203.48,203.4,2.65]
[1755985897457,4.9162,203.47,203.4,2.65]
[1755985931290,4.9162,203.47,203.41,4.07720085]
[1755985931490,4.9162,203.47,203.4,2.65]
[1755985931786,4.9162,203.47,203.41,4.07726797]
[1755985931990,4.9162,203.47,203.4,2.65]
[1755985932192,4.9162,203.47,203.41,4.07726797]
[1755985932393,4.9162,203.47,203.4,7.5676]
[1755985932693,4.9162,203.47,203.41,4.0786951]
[1755985932891,4.9162,203.47,203.4,7.5676]
[1755985933191,4.9162,203.47,203.41,4.0786951]
[1755985933393,4.9162,203.47,203.4,7.5676]
[1755985933592,4.9162,203.47,203.41,4.07996169]
[1755985933792,4.9162,203.47,203.4,7.5676]
[1755985934093,4.9162,203.47,203.41,4.07996169]
[1755985934290,4.9162,203.47,203.43,2.77]
[1755985936396,4.9162,203.47,203.44,4.08697362]
[1755985936695,4.9162,203.47,203.43,2.77]
[1755985936895,4.9162,203.47,203.4,4.9176]
[1755985936896,4.9162,203.47,203.44,2.77]
[1755985937695,4.9162,203.47,203.45,4.39269778]
[1755985937895,4.9162,203.47,203.46,4.39269778]
[1755985938995,4.9156,203.49,203.46,4.39269778]
[1755985939199,4.9156,203.49,203.47,4.39269778]
[1755985939396,4.9156,203.49,203.44,2.77]
[1755985939397,4.9156,203.49,203.48,4.39269778]
[1755985940295,4.9156,203.49,203.44,2.77]
[1755985940493,4.9156,203.49,203.45,4.39250068]
[1755985940699,4.9156,203.49,203.46,4.39250068]
[1755985940900,4.9156,203.49,203.47,4.39250068]
[1755985941103,4.9156,203.49,203.48,4.39250068]
[1755985950008,4.9156,203.49,203.45,2.77]
[1755985950208,4.9156,203.49,203.46,4.39862798]
[1755985950508,4.9156,203.49,203.47,4.39862798]
[1755985950703,4.9156,203.49,203.48,4.39862798]
[1755985955810,4.39706465,203.51,203.48,7.07862798]
[1755985955811,118.92,203.51,203.48,7.07862798]
[1755985956010,118.92,203.51,203.49,4.39862798]
[1755985956213,118.92,203.51,203.5,4.39862798]
[1755985960112,118.92,203.51,203.5,4.40187748]
[1755985960811,118.92,203.51,203.48,2.68]
[1755985961006,118.92,203.51,203.49,7.08153588]
[1755985961314,118.92,203.51,203.5,4.40153588]
[1755985969825,118.92,203.51,203.49,2.68]
[1755985970027,118.92,203.51,203.5,4.3988255]
[1755985979833,118.92,203.51,203.5,4.38468504]
[1755985982036,118.92,203.51,203.5,4.38472334]
[1755985988346,118.86,203.51,203.5,7.16472334]
[1755985988643,118.86,203.51,203.5,7.16511672]
[1755985989142,118.86,203.51,203.5,7.16511472]
[1755985991845,118.86,203.51,203.5,2.78]
[1755985992143,118.86,203.51,203.5,4.38564458]
[1755985994546,118.86,203.51,203.5,4.38590332]
[1755985998551,118.86,203.51,203.5,4.38680036]
[1755985999042,118.86,203.51,203.47,2.78]
[1755985999247,118.86,203.51,203.48,7.16680036]
[1755985999551,118.86,203.51,203.49,4.38680036]
[1755985999747,118.86,203.51,203.5,4.38680036]
[1755986008661,118.86,203.51,203.5,4.44105441]
[1755986018271,118.86,203.51,203.5,4.44140993]
[1755986021567,118.86,203.51,203.5,8.64371723]
[1755986021873,4.9147,203.53,203.5,8.64371723]
[1755986022172,4.9147,203.53,203.51,4.44153283]
[1755986022373,4.9147,203.53,203.52,4.44153283]
[1755986022670,119.02,203.54,203.52,4.44153283]
[1755986022861,119.02,203.54,203.53,4.44153283]
[1755986026174,119.0,203.54,203.53,4.44153283]
[1755986028176,119.0,203.54,203.53,4.79528789]
[1755986028476,119.0,203.54,203.49,2.8]
[1755986028677,123.9145,203.54,203.5,4.7952403]
[1755986028869,123.9145,203.54,203.51,4.7952403]
[1755986029071,123.9145,203.54,203.52,4.7952403]
[1755986029274,123.9145,203.54,203.53,4.7952403]
[1755986037785,123.9145,203.54,203.49,2.8]
[1755986037985,123.9145,203.54,203.51,2.8]
[1755986038282,123.9145,203.54,203.52,4.79631032]
[1755986038583,123.9145,203.54,203.53,4.79631032]
[1755986046792,123.9145,203.54,203.53,4.7922104]
[1755986047592,123.9145,203.54,203.53,4.79172353]
[1755986054804,123.9145,203.54,203.53,4.78972351]
[1755986055103,4.9145,203.54,203.53,4.78972351]
[1755986056706,4.9145,203.54,203.53,4.61279822]
[1755986057400,4.9145,203.54,203.53,4.61261413]
[1755986066613,4.9145,203.54,203.53,4.60607471]
[1755986076521,4.9145,203.54,203.53,7.36772943]
[1755986076823,4.914,203.56,203.53,2.76]
[1755986077113,4.914,203.56,203.54,4.60772943]
[1755986077319,4.914,203.56,203.53,2.76]
[1755986077511,4.914,203.56,203.54,4.60797449]
[1755986077716,4.914,203.56,203.53,2.76]
[1755986077916,4.914,203.56,203.54,4.60797449]
[1755986078120,4.914,203.56,203.53,2.76]
[1755986078319,4.914,203.56,203.54,4.60825104]
[1755986078517,4.914,203.56,203.53,2.76]
[1755986078819,4.914,203.56,203.54,4.60825104]
[1755986079118,4.914,203.56,203.53,2.76]
[1755986079320,4.914,203.56,203.54,4.60856388]
[1755986079513,4.914,203.56,203.53,2.76]
[1755986079715,4.914,203.56,203.54,4.60856388]
[1755986079911,4.914,203.56,203.53,2.76]
[1755986080215,4.914,203.56,203.54,4.60856388]
[1755986080516,4.914,203.56,203.53,2.76]
[1755986080719,4.914,203.56,203.54,4.60891965]
[1755986080934,4.914,203.56,203.53,2.76]
[1755986081221,4.914,203.56,203.54,4.60891965]
[1755986081423,4.914,203.56,203.53,2.76]
[1755986081624,4.914,203.56,203.54,4.60932807]
[1755986081923,4.914,203.56,203.53,2.76]
[1755986082121,4.914,203.56,203.54,4.60932807]
[1755986082323,4.914,203.56,203.53,2.76]
[1755986082524,4.914,203.56,203.54,4.60980434]
[1755986082822,4.914,203.56,203.55,4.60980434]
[1755986083721,4.914,203.56,203.55,4.61043001]
[1755986086222,4.914,203.56,203.55,4.6111602]
[1755986088827,118.84,203.57,203.55,4.6111602]
[1755986089026,118.84,203.57,203.56,4.6111602]
[1755986090430,4.9139,203.56,203.53,2.76]
[1755986090629,4.9139,203.56,203.54,4.61206004]
[1755986090828,4.9139,203.56,203.53,2.76]
[1755986090829,4.9139,203.56,203.55,4.61206004]
[1755986094831,123.7339,203.56,203.55,4.61206004]
[1755986096231,123.7339,203.56,203.55,4.56348833]
[1755986098736,4.9139,203.56,203.55,4.56348833]
[1755986098937,123.7339,203.56,203.55,4.56348833]
[1755986104741,123.7339,203.56,203.53,2.76]
[1755986104942,123.7339,203.56,203.54,4.56220707]
[1755986105139,123.7339,203.56,203.55,4.56220707]
[1755986105339,123.7339,203.56,203.53,2.76]
[1755986105534,123.7339,203.56,203.54,4.56209712]
[1755986105733,4.9143,203.55,203.53,2.76]
[1755986106042,4.9143,203.55,203.54,4.56243344]
[1755986106235,118.82,203.56,203.54,4.56243344]
[1755986106441,123.734,203.56,203.55,4.56243344]
[1755986109648,123.734,203.56,203.55,7.22243344]
[1755986109845,123.734,203.56,203.55,4.56243344]
[1755986111150,123.734,203.56,203.55,4.56197559]
[1755986112058,4.914,203.56,203.55,4.56197559]
[1755986112958,4.914,203.56,203.55,7.22197559]
[1755986114560,4.914,203.56,203.55,2.66]
[1755986114859,4.914,203.56,203.55,7.22156626]
[1755986115452,4.914,203.56,203.55,4.56156626]
[1755986115655,4.914,203.56,203.55,4.56157514]
[1755986118362,4.914,203.56,203.5,4.9152]
[1755986118555,4.914,203.56,203.54,2.66]
[1755986120359,123.7335,203.58,203.54,2.66]
[1755986122464,123.7335,203.58,203.55,4.56236633]
[1755986122666,123.7335,203.58,203.54,2.66]
[1755986122866,123.7335,203.58,203.55,4.56236633]
[1755986123165,123.7335,203.58,203.54,2.66]
[1755986123366,123.7335,203.58,203.55,4.58550013]
[1755986123567,123.7335,203.58,203.54,2.66]
[1755986123865,123.7335,203.58,203.55,4.58548053]
[1755986124165,123.7335,203.58,203.54,2.66]
[1755986124365,123.7335,203.58,203.55,4.58559665]
[1755986124566,123.7335,203.58,203.54,2.66]
[1755986124766,123.7335,203.58,203.55,4.58559665]
[1755986124960,123.7335,203.58,203.54,2.66]
[1755986125166,123.7335,203.58,203.55,4.58569265]
[1755986125467,123.7335,203.58,203.54,2.66]
[1755986125768,123.7335,203.58,203.55,4.58572742]
[1755986126066,123.7335,203.58,203.54,2.66]
[1755986126266,123.7335,203.58,203.55,4.58583921]
[1755986126467,123.7335,203.58,203.54,2.66]
[1755986126766,123.7335,203.58,203.55,4.58587431]
[1755986126962,123.7335,203.58,203.54,2.66]
[1755986127165,123.7335,203.58,203.55,4.58587431]
[1755986127366,123.7335,203.58,203.54,2.66]
[1755986127567,123.7335,203.58,203.55,4.58603926]
[1755986127767,123.7335,203.58,203.5,4.9152]
[1755986127768,4.9137,203.57,203.5,7.5752]
[1755986127968,4.9137,203.57,203.51,8.84554998]
[1755986128270,4.9137,203.57,203.52,7.24603926]
[1755986128467,4.9137,203.57,203.53,4.58603926]
[1755986128671,4.9137,203.57,203.54,4.58603926]
[1755986128866,4.9137,203.57,203.55,4.58603926]
[1755986129072,4.9137,203.57,203.53,2.66]
[1755986129267,4.9137,203.57,203.54,4.58662763]
[1755986129568,4.9137,203.57,203.55,4.58662763]
[1755986129770,4.9137,203.57,203.53,2.66]
[1755986129971,4.9137,203.57,203.54,4.58665214]
[1755986130169,4.9137,203.57,203.55,4.58665214]
[1755986130372,4.9137,203.57,203.53,2.66]
[1755986130572,4.9137,203.57,203.54,4.58687766]
[1755986130772,4.9137,203.57,203.55,4.58687766]
[1755986130973,4.9137,203.57,203.53,2.66]
[1755986131174,4.9137,203.57,203.54,4.58687766]
[1755986131471,4.9137,203.57,203.55,4.58687766]
[1755986131665,4.914,203.56,203.53,2.66]
[1755986131862,4.914,203.56,203.54,4.58725101]
[1755986132063,4.914,203.56,203.55,4.58725101]
[1755986134468,4.914,203.56,203.55,4.58792642]
[1755986144379,4.914,203.56,203.55,4.58784587]
[1755986145184,4.914,203.56,203.55,4.58786121]
[1755986149586,4.914,203.56,203.55,7.24786121]
[1755986154390,4.914,203.56,203.55,7.26398247]
[1755986154693,4.914,203.56,203.55,7.26411303]
[1755986162996,4.914,203.56,203.55,7.26426674]
[1755986163697,4.914,203.56,203.55,4.60426674]
[1755986163897,123.19706465,203.57,203.42,2.73]
[1755986164098,4.39706465,203.54,203.45,2.73]
[1755986164297,118.76,203.53,203.46,8.83022673]
[1755986164490,118.76,203.53,203.47,4.60525822]
[1755986164693,118.76,203.53,203.48,4.60525822]
[1755986164893,118.76,203.53,203.49,4.60525822]
[1755986165193,4.9148,203.52,203.5,4.60525822]
[1755986165390,4.9148,203.52,203.51,4.60525822]
[1755986166096,9.31186465,203.52,203.51,4.60525822]
[1755986166296,4.9158,203.49,203.45,2.73]
[1755986166596,4.9158,203.49,203.46,7.32866197]
[1755986166895,4.9158,203.49,203.47,4.59866197]
[1755986167191,4.9158,203.49,203.48,4.59866197]
[1755986172805,4.9158,203.49,203.48,4.59391159]
[1755986173405,4.9158,203.49,203.48,4.59342779]
[1755986182616,4.9158,203.49,203.46,2.73]
[1755986182815,4.9158,203.49,203.47,7.31995432]
[1755986183114,4.9158,203.49,203.48,4.58995432]
[1755986183309,4.9158,203.49,203.48,4.56285077]
[1755986186120,4.9158,203.49,203.46,2.73]
[1755986186419,4.9158,203.49,203.47,7.29256127]
[1755986186720,4.9158,203.49,203.47,2.73]
[1755986190323,4.9158,203.49,203.44,2.73]
[1755986190523,4.9158,203.49,203.43,4.39706465]
[1755986190524,4.9158,203.49,203.46,2.73]
[1755986190727,4.9158,203.49,203.48,2.73]
[1755986194823,4.9158,203.49,203.48,7.29307639]
[1755986202534,4.9158,203.49,203.48,2.73]
[1755986202733,4.9158,203.49,203.48,7.2975717]
[1755986203035,4.9158,203.49,203.48,2.73]
[1755986203229,4.9158,203.49,203.48,7.29859387]
[1755986203429,4.9158,203.49,203.48,7.29852646]
[1755986204935,4.9158,203.49,203.48,2.73]
[1755986205133,28.97396465,203.5,203.38,4.39706465]
[1755986205339,4.39706465,203.48,203.4,2.57]
[1755986205636,4.39706465,203.48,203.41,4.56950094]
[1755986205637,118.74,203.47,203.41,4.56950094]
[1755986205827,118.74,203.47,203.42,7.13950094]
[1755986206031,118.74,203.47,203.43,4.56950094]
[1755986206226,4.9163,203.46,203.44,4.56950094]
[1755986206435,4.9163,203.46,203.45,4.56950094]
[1755986206937,4.9179,203.4,203.32,4.1481445]
[1755986207134,123.13706465,203.43,203.33,4.14788896]
[1755986207335,123.13706465,203.43,203.35,2.57]
[1755986208640,4.9182,203.38,203.32,4.39706465]
[1755986208832,4.9182,203.38,203.37,2.57]
[1755986209029,4.9193,203.34,203.27,4.1481445]
[1755986209234,9.31636465,203.34,203.29,2.57]
[1755986209434,9.31636465,203.34,203.25,2.57]
[1755986209632,9.31636465,203.34,203.27,2.57]
[1755986210230,4.9196,203.32,203.27,2.57]
[1755986210436,4.39706465,203.31,203.27,2.57]
[1755986211441,4.39706465,203.31,203.21,2.57]
[1755986215031,4.39706465,203.31,203.23,2.57]
[1755986224847,330.5,203.48,203.24,2.76]
[1755986225047,4.39706465,203.35,203.24,2.76]
[1755986226038,4.39706465,203.35,203.25,2.76]
[1755986226642,4.39706465,203.35,203.29,4.9203]
[1755986226840,4.39706465,203.35,203.29,7.6803]
[1755986230350,4.39706465,203.35,203.29,4.9203]
[1755986230551,4.39706465,203.35,203.32,2.76]
[1755986242250,9.31546465,203.38,203.32,2.76]
[1755986245458,128.41546465,203.38,203.32,2.76]
[1755986245657,9.31546465,203.38,203.32,2.76]
[1755986245858,128.41546465,203.38,203.32,2.76]
[1755986249662,128.39546465,203.38,203.32,2.76]
[1755986250662,119.06,203.37,203.32,2.76]
[1755986251663,119.06,203.37,203.33,2.76]
[1755986252466,119.06,203.37,203.3,2.76]
[1755986254665,119.06,203.37,203.3,7.6799]
[1755986254864,9.31546465,203.38,203.31,2.6]
[1755986255066,123.47706465,203.38,203.32,4.9194]
[1755986255467,4.39706465,203.38,203.34,2.6]
[1755986255667,4.39706465,203.38,203.35,2.6]
[1755986255962,4.39706465,203.38,203.28,28.99996465]
[1755986256175,4.39706465,203.38,203.36,2.6]
[1755986256871,4.39706465,203.42,203.32,2.6]
[1755986257068,4.39706465,203.42,203.34,2.6]
[1755986257270,4.39706465,203.42,203.35,4.19932813]
[1755986257571,4.39706465,203.42,203.37,2.6]
[1755986257872,4.39706465,203.42,203.38,4.918]
[1755986258171,4.39706465,203.42,203.39,2.6]
[1755986258466,4.39706465,203.42,203.41,2.6]
[1755986258871,4.39706465,203.45,203.41,2.6]
[1755986263283,4.39706465,203.45,203.38,7.518]
[1755986263483,4.39706465,203.45,203.39,4.4967052]
[1755986263782,4.39706465,203.45,203.38,7.518]
[1755986264082,4.39706465,203.45,203.39,4.4967052]
[1755986264282,4.39706465,203.45,203.4,7.0967052]
[1755986264486,4.39706465,203.45,203.4,2.6]
[1755986266989,9.31366465,203.45,203.4,2.6]
[1755986267288,128.33366465,203.45,203.4,2.6]
[1755986267790,9.31366465,203.45,203.39,2.6]
[1755986267986,128.31366465,203.45,203.39,2.6]
[1755986270799,123.39706465,203.45,203.35,2.6]
[1755986270983,4.39706465,203.42,203.35,2.6]
[1755986271285,4.39706465,203.42,203.36,4.49571764]
[1755986271481,9.31446465,203.42,203.35,2.6]
[1755986273988,4.9177,203.41,203.35,2.6]
[1755986274186,4.39706465,203.42,203.35,2.6]
[1755986274791,4.9179,203.4,203.35,2.6]
[1755986275792,4.9181,203.39,203.32,7.5196]
[1755986275992,4.39706465,203.39,203.33,4.51545138]
[1755986276188,4.39706465,203.39,203.32,2.6]
[1755986276493,123.33706465,203.39,203.33,4.51601359]
[1755986276689,123.33706465,203.39,203.32,2.6]
[1755986276882,123.33706465,203.39,203.33,4.51601359]
[1755986277087,123.33706465,203.39,203.32,2.6]
[1755986277388,123.33706465,203.39,203.33,4.51601359]
[1755986277692,123.33706465,203.39,203.32,2.6]
[1755986277693,4.9183,203.38,203.32,2.6]
[1755986277986,4.9183,203.38,203.33,7.1163995]
[1755986278192,4.9183,203.38,203.33,2.6]
[1755986279695,123.8783,203.38,203.33,2.6]
[1755986280293,4.9186,203.37,203.33,2.6]
[1755986280499,9.31566465,203.37,203.3,2.6]
[1755986280791,9.31566465,203.37,203.31,4.51752058]
[1755986280986,4.9188,203.36,203.32,7.11752058]
[1755986281192,4.9188,203.36,203.32,2.6]
[1755986284000,4.9188,203.36,203.29,2.76]
[1755986284195,4.9188,203.36,203.3,4.51810152]
[1755986284390,4.9188,203.36,203.31,4.51810152]
[1755986284596,4.9188,203.36,203.32,4.51810152]
[1755986284897,4.9188,203.36,203.29,2.76]
[1755986285199,4.9188,203.36,203.3,4.51835368]
[1755986285498,4.9188,203.36,203.31,7.27835368]
[1755986285699,4.9188,203.36,203.32,4.51835368]
[1755986285896,4.9188,203.36,203.31,2.76]
[1755986286101,4.9191,203.35,203.31,2.76]
[1755986288804,4.9193,203.34,203.31,2.76]
[1755986289903,4.9193,203.34,203.28,2.76]
[1755986290099,4.9193,203.34,203.3,2.76]
[1755986290303,4.9193,203.34,203.31,4.51838837]
[1755986290501,4.9193,203.34,203.27,4.39706465]
[1755986290701,4.9193,203.34,203.31,2.76]
[1755986290902,4.39706465,203.34,203.27,2.76]
[1755986291104,4.39706465,203.34,203.29,2.76]
[1755986291305,4.39706465,203.34,203.3,4.5183437]
[1755986291605,4.39706465,203.34,203.3,2.76]
[1755986292607,4.9197,203.32,203.3,2.76]
[1755986299412,4.9197,203.32,203.26,2.76]
[1755986299614,4.9197,203.32,203.25,4.9212]
[1755986299813,4.9197,203.32,203.28,2.76]
[1755986300113,4.9197,203.32,203.29,4.51721005]
[1755986300412,4.9197,203.32,203.3,7.27721005]
[1755986300607,4.9197,203.32,203.3,2.76]
[1755986300809,4.9197,203.32,203.31,2.76]
[1755986305213,4.9197,203.32,203.31,7.28110486]
[1755986306217,4.9197,203.32,203.31,2.76]
[1755986308219,4.9197,203.32,203.31,7.28305244]
[1755986308916,4.9197,203.32,203.31,7.28312373]
[1755986309619,4.9197,203.32,203.31,7.2841403]
[1755986312419,4.9197,203.32,203.31,7.28767909]
[1755986314213,4.9197,203.32,203.31,4.52767909]
[1755986319130,4.9197,203.32,203.31,4.53682266]
[1755986326934,4.9197,203.32,203.3,2.83]
[1755986327134,4.9197,203.32,203.31,4.54235887]
[1755986328939,4.9197,203.32,203.31,4.54304905]
[1755986332242,118.9,203.37,203.33,2.83]
[1755986332443,119.32,203.39,203.34,4.54304905]
[1755986332643,119.32,203.39,203.25,4.39706465]
[1755986332644,4.39706465,203.38,203.36,2.83]
[1755986332845,119.74,203.43,203.38,2.83]
[1755986333045,4.39706465,203.41,203.39,7.37305864]
[1755986333244,4.39706465,203.41,203.4,4.73668464]
[1755986337350,4.39706465,203.41,203.3,4.39706465]
[1755986337550,4.39706465,203.41,203.32,2.83]
[1755986337750,4.39706465,203.41,203.34,2.83]
[1755986337951,4.39706465,203.41,203.36,2.83]
[1755986338152,4.39706465,203.41,203.37,4.72473166]
[1755986338352,4.39706465,203.41,203.38,7.55473166]
[1755986338553,4.39706465,203.41,203.39,4.72442034]
[1755986338748,4.39706465,203.41,203.38,2.83]
[1755986339052,4.39706465,203.41,203.39,4.72338846]
[1755986339252,4.39706465,203.41,203.38,2.83]
[1755986339452,4.39706465,203.41,203.39,4.72242393]
[1755986339755,4.39706465,203.41,203.38,2.83]
[1755986339946,4.39706465,203.41,203.39,4.72242393]
[1755986340245,4.39706465,203.41,203.38,2.83]
[1755986340443,4.39706465,203.41,203.39,4.72224954]
[1755986340642,4.39706465,203.41,203.38,2.83]
[1755986340843,9.31466465,203.41,203.39,4.72224954]
[1755986341043,9.31466465,203.41,203.38,2.83]
[1755986341353,9.31466465,203.41,203.39,4.72224954]
[1755986341556,9.31466465,203.41,203.38,2.83]
[1755986341854,4.9176,203.41,203.39,7.014e-05]
[1755986342060,4.39706465,203.4,203.33,2.83]
[1755986342355,4.39706465,203.35,203.33,2.83]
[1755986347160,4.39706465,203.35,203.27,2.64]
[1755986347456,4.39706465,203.32,203.27,2.64]
[1755986349060,4.39706465,203.32,203.24,4.9215]
[1755986349261,4.39706465,203.32,203.26,2.64]
[1755986350764,9.31686465,203.32,203.26,2.64]
[1755986353869,9.31686465,203.32,203.27,4.62774007]
[1755986354067,9.31686465,203.32,203.28,7.26774007]
[1755986354360,9.31686465,203.32,203.29,4.62774007]
[1755986354562,9.31686465,203.32,203.3,4.62774007]
[1755986354762,9.31686465,203.32,203.31,4.62774007]
[1755986356069,9.31686465,203.32,203.31,4.62754841]
[1755986357467,9.31686465,203.32,203.31,4.62745427]
[1755986361971,9.31686465,203.32,203.27,2.64]
[1755986362175,9.31686465,203.32,203.28,4.62721353]
[1755986362375,9.31686465,203.32,203.29,4.62721353]
[1755986362569,9.31686465,203.32,203.3,4.62721353]
[1755986362775,9.31686465,203.32,203.27,2.64]
[1755986362976,9.31686465,203.32,203.28,7.26700124]
[1755986363175,9.31686465,203.32,203.29,4.62700124]
[1755986363377,9.31686465,203.32,203.28,2.64]
[1755986363577,9.31686465,203.32,203.29,4.49311111]
[1755986363875,9.31686465,203.32,203.28,2.64]
[1755986364075,9.31686465,203.32,203.29,4.49311111]
[1755986364270,9.31686465,203.32,203.28,2.64]
[1755986364469,9.31686465,203.32,203.29,4.49310841]
[1755986364678,9.31686465,203.32,203.28,2.64]
[1755986364878,9.31686465,203.32,203.29,4.49291817]
[1755986365179,9.31686465,203.32,203.28,2.64]
[1755986365377,9.31686465,203.32,203.29,4.49292611]
[1755986365678,4.39706465,203.3,203.28,2.64]
[1755986368682,4.39706465,203.3,203.24,4.9215]
[1755986368876,4.92,203.31,203.21,45.59677559]
[1755986368877,4.39706465,203.28,203.25,4.49213456]
[1755986369075,4.39706465,203.28,203.26,7.13213456]
[1755986369276,4.39706465,203.28,203.27,4.49213456]
[1755986369477,4.39706465,203.28,203.26,2.64]
[1755986372882,4.39706465,203.28,203.22,4.9219]
[1755986373074,9.31776465,203.28,203.24,2.64]
[1755986373274,9.31776465,203.28,203.25,4.49045076]
[1755986373481,4.39706465,203.26,203.2,4.9225]
[1755986373783,4.39706465,203.26,203.25,2.59]